[Event "European Womens-ch 2025"]
[Site "Rhodes"]
[Date "2025.04.02"]
[Round "3.23"]
[White "Antolak, Julia"]
[Black "Khachatryan, Anna"]
[Result "1-0"]
[Annotator "RC"]
[ECO "B22"]
[WhiteElo "2314"]
[BlackElo "2091"]
[PlyCount "55"]
[EventDate "2025.03.29"]
[EventType "swiss"]
[EventCountry "GRE"]
[SourceTitle "playchess.com"]
[Source "ChessBase"]
[SourceQuality "1"]
[TimeControl "40/5400+30:1800+30"]

1. e4 {[%emt 0:01:00]} c5 {[%emt 0:00:07]} 2. c3 {[%emt 0:00:49]} d5 {[%emt 0:00:29]} 3. exd5 {[%emt 0:01:21]} Qxd5 {[%emt 0:00:02]} 4. d4 {[%emt 0:00:13]} Nf6 {[%emt 0:00:22]} 5. Nf3 {[%emt 0:00:17]} e6 {[%emt 0:00:18]} 6. Na3 {[%emt 0:01:03]} a6 {[%emt 0:03:48]} 7. Nc4 {[%emt 0:02:07]} Nbd7 {[%emt 0:01:27]} 8. Be2 {[%emt 0:01:15]} Be7 {[%emt 0:03:32]} 9. O-O {[%emt 0:03:57]} O-O {[%emt 0:06:40]} 10. a4 {[%emt 0:06:19]} Rd8 {[%emt 0:16:06]} 11. a5 {[%emt 0:06:38]} Qc6 {[%emt 0:13:43]} 12. Bf4 {[%emt 0:05:09]} Nd5 {[%emt 0:02:31]} 13. Bg3 {[%emt 0:00:25]} Bf6 {[%emt 0:09:05]} 14. Qb3 {[%emt 0:04:55]} cxd4 {[%emt 0:13:33]} 15. cxd4 {[%emt 0:01:58]} b5 {[%emt 0:02:28]} 16. axb6 {[%emt 0:01:48]} a5 {[%emt 0:02:49]} 17. Nxa5 {[%emt 0:05:51]} Qxb6 {[%emt 0:00:20]} 18. Qxb6 {[%emt 0:00:40]} N7xb6 {[%emt 0:00:05]} 19. Nc6 {[%emt 0:01:57]} Rxa1 {[%emt 0:00:39]} 20. Rxa1 {[%emt 0:00:11]} Re8 {[%emt 0:00:46]} 21. Ra7 {[%emt 0:02:17]} Bd7 {[%emt 0:01:08]} 22. Nce5 {[%emt 0:02:09]} Rd8 {[%emt 0:00:03]} 23. Nxd7 {[%emt 0:02:17]} Nxd7 {[%emt 0:00:36]} 24. Rb7 {[%emt 0:04:49]} N7b6 {[%emt 0:01:42]} 25. Ne5 {[%emt 0:03:09]} Rc8 {[%emt 0:04:10]} 26. h3 {[%emt 0:03:08]} g6 {[%emt 0:07:11]} 27. Nxf7 {[%emt 0:03:57]} Bxd4 {[%emt 0:00:11]} 28. Bg4 {[%emt 0:00:44]} 1-0

[Event "European Womens-ch 2025"]
[Site "Rhodes"]
[Date "2025.04.02"]
[Round "3.24"]
[White "Hapala, Elisabeth"]
[Black "Zimina, Olga"]
[Result "1/2-1/2"]
[Annotator "RC"]
[ECO "C65"]
[WhiteElo "2092"]
[BlackElo "2293"]
[PlyCount "104"]
[EventDate "2025.03.29"]
[EventType "swiss"]
[EventCountry "GRE"]
[SourceTitle "playchess.com"]
[Source "ChessBase"]
[SourceQuality "1"]
[TimeControl "40/5400+30:1800+30"]

1. e4 {[%emt 0:00:01]} e5 {[%emt 0:00:11]} 2. Nf3 {[%emt 0:00:05]} Nc6 {[%emt 0:00:04]} 3. Bb5 {[%emt 0:00:04]} Nf6 {[%emt 0:00:04]} 4. d3 {[%emt 0:00:09]} Bc5 {[%emt 0:00:08]} 5. Bxc6 {[%emt 0:00:06]} dxc6 {[%emt 0:00:05]} 6. O-O {[%emt 0:00:06]} Qe7 {[%emt 0:02:07]} 7. Nbd2 {[%emt 0:02:04]} Nd7 {[%emt 0:01:59]} 8. Nc4 {[%emt 0:03:18]} Bd6 {[%emt 0:02:11]} 9. Bd2 {[%emt 0:17:12]} f6 {[%emt 0:10:55]} 10. Nh4 {[%emt 0:12:34]} Nb6 {[%emt 0:04:39]} 11. Na5 {[%emt 0:05:04]} g6 {[%emt 0:02:19]} 12. Kh1 {[%emt 0:07:48]} f5 {[%emt 0:24:38]} 13. Nf3 {[%emt 0:00:19]} fxe4 {[%emt 0:02:01]} 14. dxe4 {[%emt 0:00:15]} Bg4 {[%emt 0:02:54]} 15. h3 {[%emt 0:30:56]} Bxf3 {[%emt 0:00:24]} 16. Qxf3 {[%emt 0:00:05]} O-O-O {[%emt 0:00:49]} 17. Qg4+ {[%emt 0:02:28]} Rd7 {[%emt 0:01:14]} 18. Bg5 {[%emt 0:03:33]} Qe8 {[%emt 0:01:04]} 19. Rad1 {[%emt 0:01:33]} h6 {[%emt 0:08:36]} 20. Be3 {[%emt 0:00:27]} h5 {[%emt 0:00:15]} 21. Qe2 {[%emt 0:01:29]} Qe6 {[%emt 0:00:27]} 22. Bxb6 {[%emt 0:05:16]} axb6 {[%emt 0:04:44]} 23. Nc4 {[%emt 0:00:04]} Rhd8 {[%emt 0:02:58]} 24. Nxd6+ {[%emt 0:04:52]} Rxd6 {[%emt 0:01:56]} 25. a3 {[%emt 0:00:16]} b5 {[%emt 0:08:37]} 26. Kg1 {[%emt 0:00:25]} Qc4 {[%emt 0:00:57]} 27. Qxc4 {[%emt 0:00:36]} bxc4 {[%emt 0:00:01]} 28. Rxd6 {[%emt 0:00:05]} cxd6 {[%emt 0:05:33]} 29. f4 {[%emt 0:02:02]} exf4 {[%emt 0:01:20]} 30. Rxf4 {[%emt 0:00:01]} Re8 {[%emt 0:03:29]} 31. Kf2 {[%emt 0:00:11]} Re6 {[%emt 0:01:39]} 32. Kf3 {[%emt 0:00:33]} Kc7 {[%emt 0:00:33]} 33. g4 {[%emt 0:01:38]} hxg4+ {[%emt 0:00:13]} 34. hxg4 {[%emt 0:00:32]} Kb6 {[%emt 0:04:51]} 35. g5 {[%emt 0:00:36]} Re5 {[%emt 0:00:05]} 36. Rf6 {[%emt 0:00:12]} Rxg5 {[%emt 0:00:11]} 37. Rxd6 {[%emt 0:00:08]} Kc7 {[%emt 0:00:50]} 38. Rf6 {[%emt 0:01:48]} Rb5 {[%emt 0:00:28]} 39. Rxg6 {[%emt 0:00:14]} Rxb2 {[%emt 0:00:01]} 40. Rg2 {[%emt 0:00:00]} Kd6 {[%emt 0:00:00]} 41. Ke3 {[%emt 0:03:24]} b5 {[%emt 0:04:15]} 42. Kd4 {[%emt 0:16:14]} c5+ {[%emt 0:00:45]} 43. Kc3 {[%emt 0:01:04]} Ra2 {[%emt 0:00:12]} 44. Rg6+ {[%emt 0:00:14]} Kc7 {[%emt 0:05:25]} 45. Ra6 {[%emt 0:06:25]} b4+ {[%emt 0:13:13]} 46. Kxc4 {[%emt 0:00:05]} Rxc2+ {[%emt 0:00:05]} 47. Kb3 {[%emt 0:00:11]} Rc3+ {[%emt 0:00:13]} 48. Kb2 {[%emt 0:00:03]} Rc4 {[%emt 0:00:15]} 49. axb4 {[%emt 0:00:52]} Rxb4+ {[%emt 0:00:10]} 50. Kc3 {[%emt 0:00:02]} Rxe4 {[%emt 0:00:07]} 51. Rh6 {[%emt 0:00:04]} Rd4 {[%emt 0:00:21]} 52. Rg6 {[%emt 0:00:05]} Rd6 {[%emt 0:00:07]} 1/2-1/2

[Event "European Womens-ch 2025"]
[Site "Rhodes"]
[Date "2025.04.02"]
[Round "3.25"]
[White "Doluhanova, Evgeniya"]
[Black "Ibrahimova, Sabina"]
[Result "0-1"]
[Annotator "RC"]
[ECO "D00"]
[WhiteElo "2287"]
[BlackElo "2199"]
[PlyCount "62"]
[EventDate "2025.03.29"]
[EventType "swiss"]
[EventCountry "GRE"]
[SourceTitle "playchess.com"]
[Source "ChessBase"]
[SourceQuality "1"]
[TimeControl "40/5400+30:1800+30"]

1. d4 {[%emt 0:00:25]} d5 {[%emt 0:02:53]} 2. c3 {[%emt 0:02:27]} Nf6 {[%emt 0:01:20]} 3. Bf4 {[%emt 0:00:12]} e6 {[%emt 0:00:36]} 4. e3 {[%emt 0:00:07]} c5 {[%emt 0:00:51]} 5. Nd2 {[%emt 0:00:30]} Bd6 {[%emt 0:01:10]} 6. Ngf3 {[%emt 0:34:01]} cxd4 {[%emt 0:06:31]} 7. Bxd6 {[%emt 0:06:26]} dxc3 {[%emt 0:02:42]} 8. Ba3 {[%emt 0:13:21]} cxd2+ {[%emt 0:00:23]} 9. Qxd2 {[%emt 0:00:18]} Nc6 {[%emt 0:00:50]} 10. Bb5 {[%emt 0:03:07]} Bd7 {[%emt 0:00:43]} 11. Bxc6 {[%emt 0:03:40]} Bxc6 {[%emt 0:01:57]} 12. O-O {[%emt 0:00:06]} Ne4 {[%emt 0:08:45]} 13. Qb4 {[%emt 0:04:08]} a5 {[%emt 0:03:57]} 14. Qd4 {[%emt 0:00:39]} f6 {[%emt 0:01:16]} 15. Qd3 {[%emt 0:07:48]} Kf7 {[%emt 0:17:51]} 16. Nd4 {[%emt 0:00:52]} e5 {[%emt 0:07:51]} 17. Nxc6 {[%emt 0:00:54]} bxc6 {[%emt 0:00:05]} 18. Rac1 {[%emt 0:00:24]} Qd7 {[%emt 0:01:47]} 19. Rfd1 {[%emt 0:02:17]} Rhd8 {[%emt 0:09:14]} 20. f3 {[%emt 0:02:21]} Ng5 {[%emt 0:01:04]} 21. h4 {[%emt 0:00:33]} Ne6 {[%emt 0:01:27]} 22. Qxh7 {[%emt 0:01:02]} Rh8 {[%emt 0:02:50]} 23. Qc2 {[%emt 0:01:43]} Rac8 {[%emt 0:03:24]} 24. Qa4 {[%emt 0:02:15]} Qa7 {[%emt 0:01:09]} 25. Kf2 {[%emt 0:01:15]} d4 {[%emt 0:03:38]} 26. Qb3 {[%emt 0:09:26]} a4 {[%emt 0:04:19]} 27. Qd3 {[%emt 0:01:41]} Rxh4 {[%emt 0:00:45]} 28. Kg3 {[%emt 0:00:44]} e4 {[%emt 0:10:08]} 29. Qc4 {[%emt 0:00:40]} Qb8+ {[%emt 0:00:42]} 30. Kf2 {[%emt 0:00:20]} dxe3+ {[%emt 0:00:35]} 31. Kf1 {[%emt 0:00:35]} Qg3 {[%emt 0:01:36]} 0-1

[Event "European Womens-ch 2025"]
[Site "Rhodes"]
[Date "2025.04.02"]
[Round "3.26"]
[White "Injac, Teodora"]
[Black "Piddubna, Bozhena"]
[Result "1-0"]
[Annotator "TA"]
[ECO "A45"]
[WhiteElo "2454"]
[BlackElo "2145"]
[PlyCount "105"]
[EventDate "2025.03.29"]
[EventType "swiss"]
[EventCountry "GRE"]
[SourceTitle "playchess.com"]
[Source "ChessBase"]
[SourceQuality "1"]
[TimeControl "40/5400+30:1800+30"]

{[%evp 9,105,18,18,15,20,11,5,-8,43,36,41,34,40,41,52,44,44,46,48,44,34,30,43,21,22,22,28,18,33,14,22,20,26,0,33,36,37,24,25,6,107,132,209,210,231,187,183,176,210,166,164,162,217,215,206,204,189,141,172,157,158,163,196,176,285,268,493,477,427,396,641,649,611,618,973,783,773,867,866,865,1033,1020,29985,29986,29986,29978,29978,29978,29970,6319,29983,29984,29984,29985,29985,29986,29994,29995]} 1. d4 {[%emt 0:00:03]} Nf6 {[%emt 0:01:35]} 2. Bg5 {[%emt 0:01:22]} e6 {[%emt 0:01:29]} 3. Nd2 {[%emt 0:01:34]} Be7 {[%emt 0:03:22]} 4. e4 {[%emt 0:11:13]} d6 {[%emt 0:03:52]} 5. Ngf3 {[%emt 0:09:59]} O-O {[%emt 0:05:13]} 6. Bd3 {[%emt 0:03:00] A45: Trompowsky Attack.} Nbd7 {[%emt 0:06:30]} 7. h3 {[%emt 0:05:09]} e5 {[%emt 0:02:32]} 8. c3 {[%emt 0:00:43] The position is equal.} a5 $146 {[%emt 0:16:23]} (8... exd4 $11 9. cxd4 Nxe4 10. Bxe7 (10. Nxe4 d5 $11) 10... Qxe7) (8... Nh5 9. Be3 g6 10. Qc2 Bf6 11. g4 Nf4 12. Bxf4 exf4 13. O-O-O c5 14. Kb1 a6 15. Nc4 Qc7 16. Nxd6 Qxd6 {1-0 Malka,S (2231)-Seletsky,G (2272) Titled Tuesday intern op 06th July blitz 2021 (6)}) 9. Be3 {[%emt 0:03:36]} b6 {[%emt 0:04:07]} 10. O-O {[%emt 0:01:22]} Ba6 {[%emt 0:01:46]} 11. Bxa6 {[%emt 0:02:18]} Rxa6 {[%emt 0:00:16]} 12. a4 {[%emt 0:02:18]} Qa8 {[%emt 0:04:17]} 13. Re1 {[%emt 0:06:31]} Re8 {[%emt 0:02:06]} 14. Qb3 {[%emt 0:01:15]} Qb7 {[%emt 0:02:47]} (14... Nxe4 $2 15. Nxe4 d5 (15... Qxe4 $2 16. Qb5 $18) 16. Ng3 $18 (16. Nxe5 Nxe5 17. dxe5 dxe4 $18)) 15. Rad1 {[%emt 0:05:55]} Raa8 {[%emt 0:02:28]} 16. Qb5 {[%emt 0:12:19]} Bf8 {[%emt 0:04:18]} 17. Bg5 {[%emt 0:05:37]} exd4 {[%emt 0:10:04]} 18. cxd4 {[%emt 0:00:13]} (18. Nxd4 $2 Re5 (18... Nxe4 $2 19. Nxe4 Ne5 20. Re3 $18) 19. Qf1 Rxg5 $19) 18... h6 {[%emt 0:00:46] [#] White must now prevent ...c6.} 19. Bh4 {[%emt 0:00:59]} (19. Bf4 $5) 19... d5 {[%emt 0:05:34]} 20. e5 {[%emt 0:02:01]} c6 {[%emt 0:00:07]} 21. Qd3 {[%emt 0:01:35]} Nh7 {[%emt 0:10:40]} 22. Bg3 {[%emt 0:01:27]} Bb4 {[%emt 0:00:39]} 23. Nh4 {[%emt 0:00:18]} Ng5 {[%emt 0:02:19]} 24. Nf5 {[%emt 0:00:27]} Re6 {[%emt 0:00:59]} (24... Ne6 $11 {keeps the balance.}) 25. h4 $16 {[%emt 0:02:46][%cal Bh3h4,Bh4h5][%mdl 32] White leaves nothing to chance now.} Bxd2 {[%emt 0:00:28]} (25... Nh7 $16 26. h5 b5) 26. Qxd2 $18 {[%emt 0:00:53]} (26. Nd6 Rxd6 27. Rxd2 Re6 28. hxg5 hxg5 $16) 26... Ne4 {[%emt 0:00:06] [#]} 27. Qf4 {[%emt 0:00:01]} Nf8 {[%emt 0:02:39]} 28. h5 {[%emt 0:00:45]} f6 {[%emt 0:03:19]} 29. Bh4 {[%emt 0:05:11]} fxe5 {[%emt 0:01:10]} 30. dxe5 {[%emt 0:00:02][%csl Oe5] White has a strong passed pawn} Qf7 {[%emt 0:00:32]} (30... Rae8 {was called for.} 31. f3 Ng5 32. Bxg5 (32. Nd6 Qd7 $18) 32... hxg5 33. Qxg5 Nh7) 31. Qg4 {[%emt 0:04:07]} Kh8 {[%emt 0:00:42]} 32. f3 {[%emt 0:01:01][%cal Bf2f3,Bf3f4,Bf4f5][%mdl 32]} Nc5 {[%emt 0:00:31]} 33. Nd6 {[%emt 0:03:20]} (33. f4 $18) 33... Qd7 $16 {[%emt 0:00:35]} 34. Rd4 $36 {[%emt 0:04:09][%mdl 2048] White is really pushing.} Nb7 {[%emt 0:01:08]} 35. Nf5 {[%emt 0:01:19] White is much more active.} Rae8 {[%emt 0:01:36]} 36. f4 {[%emt 0:00:03]} Qf7 {[%emt 0:00:52] Black is weak on the dark squares} (36... Nc5 $142 37. Re3 Kh7) 37. Rdd1 $18 {[%emt 0:01:15]} Rc8 $2 {[%emt 0:00:36]} (37... Nd7 38. Nd4 Nxe5) 38. Nd4 {[%emt 0:00:53][%cal Bf5d4,Bd4f3,Bf3e5,Be5g6][%mdl 32]} Ree8 {[%emt 0:00:25]} 39. f5 {[%emt 0:00:26]} Nc5 {[%emt 0:00:35]} (39... Nh7 40. Ne6 Nc5) 40. e6 {[%emt 0:00:00]} Qg8 {[%emt 0:00:00]} 41. Nf3 {[%emt 0:07:37]} Ne4 {[%emt 0:04:25]} 42. Ne5 {[%emt 0:03:50] Nf7+ is the strong threat.} Rc7 {[%emt 0:01:43]} 43. Rxe4 {[%emt 0:11:32]} dxe4 {[%emt 0:00:14]} 44. Qxe4 {[%emt 0:05:00]} b5 {[%emt 0:02:38]} 45. Rd8 {[%emt 0:04:14]} Nxe6 {[%emt 0:13:18]} 46. Ng6+ {[%emt 0:01:23]} Kh7 {[%emt 0:00:07]} 47. fxe6 {[%emt 0:00:48]} Rxd8 {[%emt 0:00:25]} 48. Ne7+ {[%emt 0:00:25]} Kh8 {[%emt 0:00:05]} 49. Nxg8 {[%emt 0:00:04]} Rxg8 {[%emt 0:00:04]} 50. e7 {[%emt 0:00:41] White mates.} Re8 {[%emt 0:01:11]} 51. Qe6 {[%emt 0:01:03]} bxa4 {[%emt 0:00:53]} 52. Qf7 {[%emt 0:00:02]} Rcc8 {[%emt 0:00:08]} 53. Bg3 {[%emt 0:00:02] Weighted Error Value: White=0.12 (very precise) /Black=0.62  Mistake:       	White=1     	Black=7      Inaccurate:     	White=1     	Black=1      OK:         	White=14    	Black=16     Best:        	White=1     	Black=2} 1-0

[Event "European Womens-ch 2025"]
[Site "Rhodes"]
[Date "2025.04.02"]
[Round "3.27"]
[White "Cornileau, Juliette"]
[Black "Kulon, Klaudia"]
[Result "0-1"]
[Annotator "RC"]
[ECO "D35"]
[WhiteElo "2130"]
[BlackElo "2401"]
[PlyCount "72"]
[EventDate "2025.03.29"]
[EventType "swiss"]
[EventCountry "GRE"]
[SourceTitle "playchess.com"]
[Source "ChessBase"]
[SourceQuality "1"]
[TimeControl "40/5400+30:1800+30"]

1. d4 {[%emt 0:00:05]} Nf6 {[%emt 0:00:13]} 2. c4 {[%emt 0:00:06]} e6 {[%emt 0:00:16]} 3. Nc3 {[%emt 0:00:05]} d5 {[%emt 0:00:06]} 4. cxd5 {[%emt 0:00:20]} Nxd5 {[%emt 0:00:06]} 5. e4 {[%emt 0:06:37]} Nxc3 {[%emt 0:00:14]} 6. bxc3 {[%emt 0:00:04]} c5 {[%emt 0:00:08]} 7. Rb1 {[%emt 0:03:33]} cxd4 {[%emt 0:00:11]} 8. cxd4 {[%emt 0:00:14]} Be7 {[%emt 0:00:18]} 9. Bb5+ {[%emt 0:04:11]} Bd7 {[%emt 0:01:58]} 10. Bd3 {[%emt 0:00:53]} Nc6 {[%emt 0:06:25]} 11. Nf3 {[%emt 0:00:43]} Nb4 {[%emt 0:01:53]} 12. Ne5 {[%emt 0:18:54]} O-O {[%emt 0:08:44]} 13. O-O {[%emt 0:06:31]} a6 {[%emt 0:08:20]} 14. Bc4 {[%emt 0:12:55]} Rc8 {[%emt 0:07:48]} 15. a3 {[%emt 0:13:09]} b5 {[%emt 0:10:03]} 16. Bb3 {[%emt 0:07:48]} Nc6 {[%emt 0:00:32]} 17. Nxc6 {[%emt 0:02:39]} Bxc6 {[%emt 0:01:01]} 18. Re1 {[%emt 0:03:57]} Bf6 {[%emt 0:04:06]} 19. Bb2 {[%emt 0:02:10]} Re8 {[%emt 0:00:36]} 20. h3 {[%emt 0:01:41]} Qa5 {[%emt 0:07:11]} 21. Qg4 {[%emt 0:02:25]} Rcd8 {[%emt 0:02:45]} 22. Red1 {[%emt 0:02:00]} Bb7 {[%emt 0:03:44]} 23. d5 {[%emt 0:05:29]} Bxb2 {[%emt 0:00:51]} 24. dxe6 {[%emt 0:01:19]} Rxd1+ {[%emt 0:04:51]} 25. Qxd1 {[%emt 0:00:34]} fxe6 {[%emt 0:04:14]} 26. Qd7 {[%emt 0:02:01]} Rf8 {[%emt 0:00:08]} 27. Rxb2 {[%emt 0:02:28]} Qxa3 {[%emt 0:04:14]} 28. Bxe6+ {[%emt 0:00:59]} Kh8 {[%emt 0:00:02]} 29. Rd2 {[%emt 0:00:36]} Bxe4 {[%emt 0:06:13]} 30. Qd4 {[%emt 0:00:11]} Bb7 {[%emt 0:03:25]} 31. Rc2 {[%emt 0:00:45]} Qe7 {[%emt 0:02:12]} 32. Qb6 {[%emt 0:00:30]} Be4 {[%emt 0:02:24]} 33. Re2 {[%emt 0:00:27]} Ba8 {[%emt 0:04:01]} 34. Qxa6 {[%emt 0:00:40]} Qg5 {[%emt 0:00:02]} 35. g3 {[%emt 0:00:29]} Qc1+ {[%emt 0:00:07]} 36. Kh2 {[%emt 0:00:12]} Qh1# {[%emt 0:00:04]} 0-1

[Event "European Womens-ch 2025"]
[Site "Rhodes"]
[Date "2025.04.02"]
[Round "3.28"]
[White "Daulyte-Cornette, Deimante"]
[Black "Berke, Ana"]
[Result "1-0"]
[Annotator "RC"]
[ECO "B51"]
[WhiteElo "2389"]
[BlackElo "2119"]
[PlyCount "45"]
[EventDate "2025.03.29"]
[EventType "swiss"]
[EventCountry "GRE"]
[SourceTitle "playchess.com"]
[Source "ChessBase"]
[SourceQuality "1"]
[TimeControl "40/5400+30:1800+30"]

1. e4 {[%emt 0:00:04]} c5 {[%emt 0:00:04]} 2. Nf3 {[%emt 0:00:09]} Nc6 {[%emt 0:00:19]} 3. Bb5 {[%emt 0:00:37]} d6 {[%emt 0:00:30]} 4. O-O {[%emt 0:00:41]} Nf6 {[%emt 0:00:54]} 5. e5 {[%emt 0:03:45]} Nd5 {[%emt 0:02:52]} 6. d4 {[%emt 0:03:05]} Bg4 {[%emt 0:06:00]} 7. h3 {[%emt 0:02:44]} Bh5 {[%emt 0:01:14]} 8. c4 {[%emt 0:13:02]} Nc7 {[%emt 0:02:23]} 9. g4 {[%emt 0:09:00]} Bg6 {[%emt 0:00:32]} 10. d5 {[%emt 0:04:09]} Nxb5 {[%emt 0:05:01]} 11. dxc6 {[%emt 0:00:07]} Nc7 {[%emt 0:00:59]} 12. cxb7 {[%emt 0:01:17]} Rb8 {[%emt 0:00:36]} 13. Qa4+ {[%emt 0:00:05]} Qd7 {[%emt 0:00:16]} 14. Qxa7 {[%emt 0:00:11]} Qd8 {[%emt 0:00:28]} 15. Nc3 {[%emt 0:05:46]} h5 {[%emt 0:03:17]} 16. Re1 {[%emt 0:07:27]} Ne6 {[%emt 0:14:55]} 17. Nd5 {[%emt 0:00:57]} hxg4 {[%emt 0:02:38]} 18. hxg4 {[%emt 0:05:07]} Rh3 {[%emt 0:02:20]} 19. Bd2 {[%emt 0:09:12]} Rxf3 {[%emt 0:04:24]} 20. Ba5 {[%emt 0:00:26]} Rxb7 {[%emt 0:00:57]} 21. Qxb7 {[%emt 0:00:04]} Qxa5 {[%emt 0:00:30]} 22. Qc6+ {[%emt 0:00:11]} Kd8 {[%emt 0:00:18]} 23. Nb6 {[%emt 0:00:08]} 1-0

[Event "European Womens-ch 2025"]
[Site "Rhodes"]
[Date "2025.04.02"]
[Round "3.29"]
[White "Fataliyeva, Ulviyya"]
[Black "Paasikangas, Johanna"]
[Result "1-0"]
[Annotator "RC"]
[ECO "D02"]
[WhiteElo "2387"]
[BlackElo "2106"]
[PlyCount "49"]
[EventDate "2025.03.29"]
[EventType "swiss"]
[EventCountry "GRE"]
[SourceTitle "playchess.com"]
[Source "ChessBase"]
[SourceQuality "1"]
[TimeControl "40/5400+30:1800+30"]

1. d4 {[%emt 0:02:26]} d5 {[%emt 0:00:10]} 2. Nf3 {[%emt 0:00:09]} e6 {[%emt 0:02:35]} 3. Bf4 {[%emt 0:01:34]} Nf6 {[%emt 0:01:45]} 4. c3 {[%emt 0:00:39]} Bd6 {[%emt 0:05:57]} 5. e3 {[%emt 0:01:05]} O-O {[%emt 0:09:06]} 6. Nbd2 {[%emt 0:00:59]} b6 {[%emt 0:06:55]} 7. Ne5 {[%emt 0:00:48]} c5 {[%emt 0:02:24]} 8. h4 {[%emt 0:01:27]} Ne4 {[%emt 0:07:02]} 9. Nxe4 {[%emt 0:09:47]} dxe4 {[%emt 0:01:02]} 10. dxc5 {[%emt 0:01:54]} Bxc5 {[%emt 0:01:21]} 11. Qc2 {[%emt 0:00:28]} Bb7 {[%emt 0:00:51]} 12. h5 {[%emt 0:03:08]} Qe8 {[%emt 0:11:39]} 13. Nc4 {[%emt 0:08:57]} Qc6 {[%emt 0:06:41]} 14. h6 {[%emt 0:01:02]} g6 {[%emt 0:01:14]} 15. Ne5 {[%emt 0:01:54]} Qe8 {[%emt 0:01:42]} 16. O-O-O {[%emt 0:00:57]} f6 {[%emt 0:10:06]} 17. Nc4 {[%emt 0:01:19]} e5 {[%emt 0:00:42]} 18. Qb3 {[%emt 0:11:22]} Kh8 {[%emt 0:00:47]} 19. Nxe5 {[%emt 0:02:04]} fxe5 {[%emt 0:09:35]} 20. Rd8 {[%emt 0:00:30]} Nd7 {[%emt 0:00:40]} 21. Rxe8 {[%emt 0:01:57]} Raxe8 {[%emt 0:00:08]} 22. Bg3 {[%emt 0:00:35]} a6 {[%emt 0:03:53]} 23. Bc4 {[%emt 0:00:38]} Nf6 {[%emt 0:02:43]} 24. Be6 {[%emt 0:02:53]} Bd6 {[%emt 0:02:29]} 25. Bf7 {[%emt 0:02:29]} 1-0

[Event "European Womens-ch 2025"]
[Site "Rhodes"]
[Date "2025.04.02"]
[Round "3.30"]
[White "Atalik, Ekaterina"]
[Black "Tsetskhladze, Mariam"]
[Result "1-0"]
[Annotator "RC"]
[ECO "D28"]
[WhiteElo "2375"]
[BlackElo "2105"]
[PlyCount "67"]
[EventDate "2025.03.29"]
[EventType "swiss"]
[EventCountry "GRE"]
[SourceTitle "playchess.com"]
[Source "ChessBase"]
[SourceQuality "1"]
[TimeControl "40/5400+30:1800+30"]

1. d4 {[%emt 0:00:04]} d5 {[%emt 0:00:07]} 2. c4 {[%emt 0:00:09]} dxc4 {[%emt 0:00:13]} 3. Nf3 {[%emt 0:00:15]} Nf6 {[%emt 0:00:10]} 4. e3 {[%emt 0:00:19]} e6 {[%emt 0:00:12]} 5. Bxc4 {[%emt 0:00:08]} c5 {[%emt 0:00:08]} 6. O-O {[%emt 0:00:27]} Nc6 {[%emt 0:00:09]} 7. Qe2 {[%emt 0:00:38]} a6 {[%emt 0:00:21]} 8. Rd1 {[%emt 0:00:15]} b5 {[%emt 0:08:25]} 9. dxc5 {[%emt 0:00:08]} Qc7 {[%emt 0:00:35]} 10. Bd3 {[%emt 0:00:23]} Bxc5 {[%emt 0:07:26]} 11. a3 {[%emt 0:00:49]} O-O {[%emt 0:06:32]} 12. b4 {[%emt 0:00:30]} Be7 {[%emt 0:11:04]} 13. Bb2 {[%emt 0:00:44]} Bd7 {[%emt 0:04:51]} 14. Nbd2 {[%emt 0:02:21]} Rfd8 {[%emt 0:02:50]} 15. Rac1 {[%emt 0:05:02]} Qb6 {[%emt 0:03:57]} 16. Ng5 {[%emt 0:07:16]} h6 {[%emt 0:07:58]} 17. Nge4 {[%emt 0:01:39]} Nxe4 {[%emt 0:11:58]} 18. Nxe4 {[%emt 0:01:54]} e5 {[%emt 0:07:14]} 19. Nc5 {[%emt 0:03:22]} Be8 {[%emt 0:01:36]} 20. Qg4 {[%emt 0:11:47]} g6 {[%emt 0:06:19]} 21. f4 {[%emt 0:04:37]} Bf6 {[%emt 0:12:14]} 22. f5 {[%emt 0:11:58]} Ne7 {[%emt 0:01:07]} 23. fxg6 {[%emt 0:01:31]} Nxg6 {[%emt 0:02:45]} 24. h4 {[%emt 0:06:08]} h5 {[%emt 0:00:53]} 25. Qxh5 {[%emt 0:00:57]} Bg7 {[%emt 0:00:34]} 26. Qg4 {[%emt 0:02:28]} Qf6 {[%emt 0:01:01]} 27. h5 {[%emt 0:01:54]} Nf8 {[%emt 0:00:19]} 28. Qg3 {[%emt 0:10:08]} Bc6 {[%emt 0:01:45]} 29. Rf1 {[%emt 0:02:18]} Qd6 {[%emt 0:00:58]} 30. Rcd1 {[%emt 0:01:06]} Bd5 {[%emt 0:01:14]} 31. Be4 {[%emt 0:01:22]} Qc6 {[%emt 0:00:30]} 32. Bxd5 {[%emt 0:01:35]} Rxd5 {[%emt 0:00:04]} 33. Rxd5 {[%emt 0:00:05]} Qxd5 {[%emt 0:00:04]} 34. h6 {[%emt 0:00:09]} 1-0

[Event "European Womens-ch 2025"]
[Site "Rhodes"]
[Date "2025.04.02"]
[Round "3.31"]
[White "Koridze, Lile"]
[Black "Gaponenko, Inna"]
[Result "0-1"]
[Annotator "RC"]
[ECO "E92"]
[WhiteElo "2115"]
[BlackElo "2349"]
[PlyCount "68"]
[EventDate "2025.03.29"]
[EventType "swiss"]
[EventCountry "GRE"]
[SourceTitle "playchess.com"]
[Source "ChessBase"]
[SourceQuality "1"]
[TimeControl "40/5400+30:1800+30"]

1. d4 {[%emt 0:00:02]} Nf6 {[%emt 0:00:06]} 2. c4 {[%emt 0:00:03]} g6 {[%emt 0:00:05]} 3. Nc3 {[%emt 0:00:04]} Bg7 {[%emt 0:00:04]} 4. e4 {[%emt 0:00:07]} d6 {[%emt 0:00:04]} 5. Nf3 {[%emt 0:00:03]} O-O {[%emt 0:00:06]} 6. Be2 {[%emt 0:00:04]} e5 {[%emt 0:00:06]} 7. d5 {[%emt 0:00:14]} a5 {[%emt 0:00:08]} 8. Bg5 {[%emt 0:00:05]} h6 {[%emt 0:00:39]} 9. Be3 {[%emt 0:01:06]} Ng4 {[%emt 0:01:22]} 10. Bd2 {[%emt 0:00:08]} f5 {[%emt 0:00:35]} 11. h3 {[%emt 0:00:57]} Nf6 {[%emt 0:00:34]} 12. exf5 {[%emt 0:01:09]} gxf5 {[%emt 0:00:16]} 13. Qc1 {[%emt 0:00:12]} f4 {[%emt 0:06:36]} 14. g3 {[%emt 0:02:39]} e4 {[%emt 0:01:31]} 15. Nh4 {[%emt 0:00:14]} e3 {[%emt 0:02:47]} 16. fxe3 {[%emt 0:00:14]} fxg3 {[%emt 0:00:04]} 17. Ng6 {[%emt 0:06:08]} Re8 {[%emt 0:09:04]} 18. Nf4 {[%emt 0:35:47]} Na6 {[%emt 0:54:52]} 19. Qc2 {[%emt 0:26:56]} Re5 {[%emt 0:00:48]} 20. Rg1 {[%emt 0:06:21]} Bf5 {[%emt 0:02:22]} 21. Qd1 {[%emt 0:01:12]} Nc5 {[%emt 0:04:34]} 22. Bf3 {[%emt 0:05:55]} Nd3+ {[%emt 0:13:01]} 23. Nxd3 {[%emt 0:00:15]} Bxd3 {[%emt 0:00:01]} 24. Rxg3 {[%emt 0:03:07]} Nh7 {[%emt 0:00:33]} 25. Bg2 {[%emt 0:01:44]} Rg5 {[%emt 0:01:45]} 26. Qf3 {[%emt 0:02:47]} Be5 {[%emt 0:00:46]} 27. Rxg5+ {[%emt 0:01:30]} Qxg5 {[%emt 0:00:27]} 28. e4 {[%emt 0:01:47]} Qh4+ {[%emt 0:00:06]} 29. Kd1 {[%emt 0:00:12]} Bxc4 {[%emt 0:00:03]} 30. Qe3 {[%emt 0:02:01]} Rf8 {[%emt 0:01:07]} 31. Kc2 {[%emt 0:00:42]} Rf2 {[%emt 0:00:39]} 32. Rg1 {[%emt 0:02:03]} Bf4 {[%emt 0:00:08]} 33. Qxf4 {[%emt 0:00:34]} Rxf4 {[%emt 0:00:04]} 34. Bxf4 {[%emt 0:00:03]} Qf2+ {[%emt 0:00:19]} 0-1